[Event "GrandPrix_29.05"]
[Site "Chess.com"]
[Date "2020.05.29"]
[Round "1"]
[White "DaVinci81"]
[Black "Shota_Azaladze"]
[Result "1-0"]
[WhiteElo "2157"]
[BlackElo "2022"]
[TimeControl "600+2"]
[EndTime "9:27:04 PDT"]
[Termination "DaVinci81 won by checkmate"]

1. Nf3 {[%clk 0:09:39.4]} 1... Nf6 {[%clk 0:09:59.7]} 2. c4 {[%clk 0:09:39.7]}
2... g6 {[%clk 0:10:00]} 3. Nc3 {[%clk 0:09:40.4]} 3... Bg7 {[%clk 0:10:00.9]}
4. e4 {[%clk 0:09:39.6]} 4... c5 {[%clk 0:10:01]} 5. d4 {[%clk 0:09:40.4]} 5...
cxd4 {[%clk 0:09:58.8]} 6. Nxd4 {[%clk 0:09:40.5]} 6... Nc6 {[%clk 0:09:59.9]}
7. Be3 {[%clk 0:09:41.4]} 7... O-O {[%clk 0:09:59]} 8. Be2 {[%clk 0:09:41.8]}
8... d6 {[%clk 0:10:00.2]} 9. O-O {[%clk 0:09:42.2]} 9... Bd7 {[%clk 0:10:01.2]}
10. Nb3 {[%clk 0:09:35.2]} 10... a5 {[%clk 0:09:44.5]} 11. Nd2 {[%clk
0:09:34.8]} 11... Be6 {[%clk 0:09:18.7]} 12. Rc1 {[%clk 0:09:22.7]} 12... Nd7
{[%clk 0:09:14.9]} 13. Na4 {[%clk 0:08:22.2]} 13... b6 {[%clk 0:08:57.2]} 14.
Nc3 {[%clk 0:08:11.4]} 14... Nc5 {[%clk 0:08:56.7]} 15. b3 {[%clk 0:08:01.3]}
15... Nb4 {[%clk 0:07:57.5]} 16. a3 {[%clk 0:07:37.1]} 16... Nc6 {[%clk
0:07:51]} 17. Nb5 {[%clk 0:07:22.3]} 17... Bd7 {[%clk 0:06:32.6]} 18. Qc2 {[%clk
0:06:31.8]} 18... Qb8 {[%clk 0:06:11.2]} 19. Rfd1 {[%clk 0:06:28.4]} 19... Qb7
{[%clk 0:05:58.7]} 20. h3 {[%clk 0:06:22.8]} 20... f5 {[%clk 0:05:39.4]} 21.
exf5 {[%clk 0:06:16.9]} 21... Bxf5 {[%clk 0:05:37.2]} 22. Qa2 {[%clk 0:06:09.1]}
22... Qd7 {[%clk 0:04:21.5]} 23. Nf3 {[%clk 0:05:33.6]} 23... a4 {[%clk
0:04:08]} 24. b4 {[%clk 0:05:18.8]} 24... Nb3 {[%clk 0:04:08.3]} 25. Bxb6 {[%clk
0:05:11.8]} 25... Nxc1 {[%clk 0:04:07.6]} 26. Rxc1 {[%clk 0:05:12.1]} 26... Kh8
{[%clk 0:03:53.2]} 27. Qd2 {[%clk 0:05:06]} 27... Qb7 {[%clk 0:03:47.4]} 28. Be3
{[%clk 0:05:04.2]} 28... Rad8 {[%clk 0:03:45.6]} 29. Nbd4 {[%clk 0:05:01.5]}
29... Be4 {[%clk 0:03:41.9]} 30. Nxc6 {[%clk 0:04:46.9]} 30... Bxc6 {[%clk
0:03:42.3]} 31. Bh6 {[%clk 0:04:26.7]} 31... e5 {[%clk 0:03:31.6]} 32. b5 {[%clk
0:04:12.8]} 32... Be4 {[%clk 0:03:16.2]} 33. Bxg7+ {[%clk 0:04:09.3]} 33... Kxg7
{[%clk 0:03:08.6]} 34. Qe3 {[%clk 0:04:05]} 34... h6 {[%clk 0:03:00.5]} 35. c5
{[%clk 0:03:39]} 35... dxc5 {[%clk 0:02:46.7]} 36. Rxc5 {[%clk 0:03:34.9]} 36...
Rfe8 {[%clk 0:02:31.5]} 37. Qc3 {[%clk 0:03:26.8]} 37... Rc8 {[%clk 0:02:18.8]}
38. b6 {[%clk 0:02:28.5]} 38... Rxc5 {[%clk 0:02:03.3]} 39. Qxc5 {[%clk
0:02:28.9]} 39... Qe7 {[%clk 0:02:02.3]} 40. Qc4 {[%clk 0:02:14.8]} 40... Bb7
{[%clk 0:01:43.2]} 41. Qxa4 {[%clk 0:02:12.2]} 41... Rc8 {[%clk 0:01:36.9]} 42.
Qb5 {[%clk 0:02:06.8]} 42... Rc1+ {[%clk 0:01:32.8]} 43. Kh2 {[%clk 0:02:07.5]}
43... Rc5 {[%clk 0:01:27.9]} 44. Qb2 {[%clk 0:02:06.4]} 44... Kh7 {[%clk
0:01:27.4]} 45. Nd2 {[%clk 0:01:49]} 45... e4 {[%clk 0:01:24.5]} 46. Nc4 {[%clk
0:01:46.7]} 46... Ba6 {[%clk 0:01:05.6]} 47. Ne3 {[%clk 0:01:34.3]} 47... Bxe2
{[%clk 0:00:57.5]} 48. Qxe2 {[%clk 0:01:34.9]} 48... Qd6+ {[%clk 0:00:58]} 49.
g3 {[%clk 0:01:34.3]} 49... Qxb6 {[%clk 0:00:58.4]} 50. Ng4 {[%clk 0:01:30.9]}
50... Qc6 {[%clk 0:00:55.9]} 51. Qe3 {[%clk 0:01:29]} 51... h5 {[%clk
0:00:51.1]} 52. Qh6+ {[%clk 0:01:24.6]} 52... Kg8 {[%clk 0:00:51.9]} 53. Ne3
{[%clk 0:01:25.9]} 53... Qf6 {[%clk 0:00:49.5]} 54. Ng2 {[%clk 0:01:09.2]} 54...
Rc2 {[%clk 0:00:38.4]} 55. Qe3 {[%clk 0:01:00.8]} 55... Qf5 {[%clk 0:00:32.3]}
56. Kg1 {[%clk 0:00:49.5]} 56... Rc6 {[%clk 0:00:19.8]} 57. Nf4 {[%clk
0:00:48.3]} 57... Kh7 {[%clk 0:00:20.5]} 58. Kg2 {[%clk 0:00:48.2]} 58... Rf6
{[%clk 0:00:21.2]} 59. h4 {[%clk 0:00:49.1]} 59... Rf7 {[%clk 0:00:19.7]} 60. a4
{[%clk 0:00:50.1]} 60... Qe5 {[%clk 0:00:20.9]} 61. Qb6 {[%clk 0:00:49.3]} 61...
Rf6 {[%clk 0:00:20.8]} 62. Qa7+ {[%clk 0:00:49.6]} 62... Kh6 {[%clk 0:00:22]}
63. Qe3 {[%clk 0:00:51]} 63... Kg7 {[%clk 0:00:22.4]} 64. Nh3 {[%clk 0:00:52.1]}
64... Qd5 {[%clk 0:00:21.1]} 65. Nf4 {[%clk 0:00:52]} 65... Qc4 {[%clk
0:00:21.2]} 66. a5 {[%clk 0:00:52.5]} 66... Rf7 {[%clk 0:00:21.9]} 67. a6 {[%clk
0:00:50]} 67... Qxa6 {[%clk 0:00:21.9]} 68. Qxe4 {[%clk 0:00:50.2]} 68... Qf6
{[%clk 0:00:23.4]} 69. Ne6+ {[%clk 0:00:50.2]} 69... Kg8 {[%clk 0:00:23.6]} 70.
Nf4 {[%clk 0:00:50.3]} 70... Kh7 {[%clk 0:00:23.7]} 71. Kh2 {[%clk 0:00:47.8]}
71... Kg7 {[%clk 0:00:23.3]} 72. Kg2 {[%clk 0:00:47.7]} 72... Qf5 {[%clk
0:00:23.1]} 73. Qd4+ {[%clk 0:00:48.1]} 73... Kh7 {[%clk 0:00:24.3]} 74. Qc4
{[%clk 0:00:48.1]} 74... Qd7 {[%clk 0:00:24.3]} 75. Ne6 {[%clk 0:00:45.3]} 75...
Qb7+ {[%clk 0:00:23]} 76. Kg1 {[%clk 0:00:46.5]} 76... Re7 {[%clk 0:00:21.3]}
77. Ng5+ {[%clk 0:00:44.9]} 77... Kh6 {[%clk 0:00:22.5]} 78. Qc1 {[%clk
0:00:45.3]} 78... Kg7 {[%clk 0:00:22.8]} 79. Qc3+ {[%clk 0:00:45.6]} 79... Kh6
{[%clk 0:00:23.9]} 80. Qd2 {[%clk 0:00:45]} 80... Kg7 {[%clk 0:00:17.8]} 81.
Qc3+ {[%clk 0:00:42.2]} 81... Kg8 {[%clk 0:00:18.3]} 82. Qc4+ {[%clk 0:00:41.3]}
82... Kf8 {[%clk 0:00:18.2]} 83. Ne6+ {[%clk 0:00:39]} 83... Ke8 {[%clk
0:00:18.6]} 84. Kh2 {[%clk 0:00:27.3]} 84... Qa7 {[%clk 0:00:13.9]} 85. Qc8+
{[%clk 0:00:19.9]} 85... Kf7 {[%clk 0:00:14.5]} 86. Ng5+ {[%clk 0:00:20.9]}
86... Kg7 {[%clk 0:00:15.8]} 87. Qc3+ {[%clk 0:00:22.3]} 87... Kg8 {[%clk
0:00:13.4]} 88. Qf6 {[%clk 0:00:23.3]} 88... Rg7 {[%clk 0:00:09]} 89. Qd8#
{[%clk 0:00:23.5]} 1-0

[Event "GrandPrix_29.05"]
[Site "Chess.com"]
[Date "2020.05.29"]
[Round "1"]
[White "arminmusovic"]
[Black "matej2221"]
[Result "1-0"]
[WhiteElo "2301"]
[BlackElo "1646"]
[TimeControl "600+2"]
[EndTime "9:27:05 PDT"]
[Termination "arminmusovic won by resignation"]

1. a3 {[%clk 0:09:57.7]} 1... d5 {[%clk 0:09:58.9]} 2. Nc3 {[%clk 0:09:54.3]}
2... d4 {[%clk 0:09:56.4]} 3. Ne4 {[%clk 0:09:55.2]} 3... e5 {[%clk 0:09:53.3]}
4. Ng3 {[%clk 0:09:56.2]} 4... Nc6 {[%clk 0:09:38]} 5. e4 {[%clk 0:09:53.7]}
5... dxe3 {[%clk 0:09:29.3]} 6. fxe3 {[%clk 0:09:52.1]} 6... Nf6 {[%clk
0:09:26.7]} 7. Bc4 {[%clk 0:09:36.3]} 7... Qd6 {[%clk 0:09:13.5]} 8. N1e2 {[%clk
0:09:21.9]} 8... Be6 {[%clk 0:09:13.4]} 9. Bxe6 {[%clk 0:09:20.5]} 9... Qxe6
{[%clk 0:09:14.2]} 10. O-O {[%clk 0:09:16.6]} 10... Bc5 {[%clk 0:08:59.8]} 11.
d4 {[%clk 0:08:17.3]} 11... Bb6 {[%clk 0:08:33]} 12. c3 {[%clk 0:08:09.6]} 12...
O-O {[%clk 0:08:27.2]} 13. Qc2 {[%clk 0:07:58.5]} 13... Rfe8 {[%clk 0:08:26]}
14. Bd2 {[%clk 0:07:51.9]} 14... Na5 {[%clk 0:08:15]} 15. Rae1 {[%clk
0:07:30.4]} 15... Nc4 {[%clk 0:07:37.1]} 16. Bc1 {[%clk 0:06:30.4]} 16... exd4
{[%clk 0:07:21.1]} 17. Nxd4 {[%clk 0:06:30.9]} 17... Bxd4 {[%clk 0:06:52.5]} 18.
cxd4 {[%clk 0:06:05.9]} 18... Nd6 {[%clk 0:06:07.9]} 19. e4 {[%clk 0:04:08.1]}
19... Nfxe4 {[%clk 0:05:50.7]} 20. Nxe4 {[%clk 0:03:59.4]} 20... Nxe4 {[%clk
0:05:51.4]} 21. Qxc7 {[%clk 0:04:00.4]} 21... Qd5 {[%clk 0:05:23.6]} 22. Kh1
{[%clk 0:03:26.9]} 22... Rad8 {[%clk 0:05:03.5]} 23. Be3 {[%clk 0:03:07.8]}
23... Nf6 {[%clk 0:04:49.5]} 24. Bg1 {[%clk 0:03:01.8]} 24... Rxe1 {[%clk
0:04:01.1]} 25. Rxe1 {[%clk 0:03:01.3]} 25... h6 {[%clk 0:03:15]} 26. Re5 {[%clk
0:02:54.6]} 26... Qd7 {[%clk 0:03:08.8]} 27. Re7 {[%clk 0:02:32.5]} 27... Qxc7
{[%clk 0:03:05.9]} 28. Rxc7 {[%clk 0:02:34.4]} 28... Rd7 {[%clk 0:03:07.1]} 29.
Rc8+ {[%clk 0:02:05]} 29... Kh7 {[%clk 0:03:07.3]} 30. g3 {[%clk 0:01:40]} 30...
Re7 {[%clk 0:02:36.9]} 31. Rd8 {[%clk 0:01:27]} 31... Rd7 {[%clk 0:02:13.8]} 32.
Rc8 {[%clk 0:01:28.1]} 32... Kg6 {[%clk 0:01:58.5]} 33. Kg2 {[%clk 0:01:17.9]}
33... Kf5 {[%clk 0:01:53.4]} 34. Kf3 {[%clk 0:01:18.8]} 34... a6 {[%clk
0:01:43.1]} 35. g4+ {[%clk 0:01:03.7]} 35... Ke6 {[%clk 0:01:34.9]} 36. h3
{[%clk 0:00:59.3]} 36... Rd5 {[%clk 0:01:27.9]} 37. Rc7 {[%clk 0:00:57.3]} 37...
Rb5 {[%clk 0:01:24.5]} 38. b4 {[%clk 0:00:55.1]} 38... Nd5 {[%clk 0:00:48.9]}
39. Rc8 {[%clk 0:00:45.9]} 39... a5 {[%clk 0:00:48.4]} 40. Rc5 {[%clk
0:00:41.2]} 40... Rxc5 {[%clk 0:00:48.9]} 41. bxc5 {[%clk 0:00:41.7]} 41... Nc3
{[%clk 0:00:39]} 42. Ke3 {[%clk 0:00:38.3]} 42... Kd5 {[%clk 0:00:21.3]} 43. Kd3
{[%clk 0:00:39.5]} 43... Ne4 {[%clk 0:00:12.6]} 44. Be3 {[%clk 0:00:39.5]} 44...
a4 {[%clk 0:00:12.9]} 45. Bg1 {[%clk 0:00:36.8]} 45... g6 {[%clk 0:00:06.5]} 46.
Be3 {[%clk 0:00:38.1]} 46... h5 {[%clk 0:00:07.5]} 47. gxh5 {[%clk 0:00:38.2]}
47... gxh5 {[%clk 0:00:09.4]} 48. Bg1 {[%clk 0:00:39.3]} 48... Ng5 {[%clk
0:00:07.6]} 49. Kc3 {[%clk 0:00:37.7]} 49... Ne6 {[%clk 0:00:08.3]} 50. Kd3
{[%clk 0:00:14]} 50... Ng5 {[%clk 0:00:06.3]} 51. h4 {[%clk 0:00:13.4]} 51...
Nf3 {[%clk 0:00:03.7]} 52. Bf2 {[%clk 0:00:14.8]} 52... f6 {[%clk 0:00:05.3]}
53. Kc3 {[%clk 0:00:13.9]} 53... Nh2 {[%clk 0:00:05.9]} 54. Kb4 {[%clk
0:00:14.2]} 54... Nf3 {[%clk 0:00:06.9]} 55. Kxa4 {[%clk 0:00:15]} 55... Nxd4
{[%clk 0:00:07.9]} 56. Ka5 {[%clk 0:00:14.6]} 56... Nb3+ {[%clk 0:00:07.2]} 57.
Kb6 {[%clk 0:00:15.3]} 57... f5 {[%clk 0:00:08.6]} 58. a4 {[%clk 0:00:14.8]}
58... f4 {[%clk 0:00:09.6]} 59. a5 {[%clk 0:00:16.5]} 59... f3 {[%clk
0:00:10.8]} 60. a6 {[%clk 0:00:16.1]} 60... bxa6 {[%clk 0:00:08.9]} 61. c6
{[%clk 0:00:17.4]} 61... Nd2 {[%clk 0:00:08.5]} 62. c7 {[%clk 0:00:16.9]} 62...
Nc4+ {[%clk 0:00:09.7]} 63. Kxa6 {[%clk 0:00:17.9]} 63... Nd6 {[%clk 0:00:10.3]}
64. Bg3 {[%clk 0:00:19.1]} 64... Nc8 {[%clk 0:00:05.9]} 65. Kb7 {[%clk
0:00:20.3]} 65... Ne7 {[%clk 0:00:07.2]} 66. Bf2 {[%clk 0:00:19.2]} 66... Ke4
{[%clk 0:00:07.4]} 67. Bc5 {[%clk 0:00:20.3]} 67... Kd3 {[%clk 0:00:03.5]} 68.
Bxe7 {[%clk 0:00:20.6]} 68... f2 {[%clk 0:00:04.9]} 69. c8=Q {[%clk 0:00:22.5]}
69... f1=Q {[%clk 0:00:06.4]} 70. Qd7+ {[%clk 0:00:21.6]} 70... Ke4 {[%clk
0:00:06.7]} 71. Qe6+ {[%clk 0:00:22.2]} 71... Kd4 {[%clk 0:00:04.9]} 72. Bf6+
{[%clk 0:00:22.1]} 72... Kc5 {[%clk 0:00:06.1]} 73. Qc6+ {[%clk 0:00:22.5]}
73... Kb4 {[%clk 0:00:07.2]} 74. Be7+ {[%clk 0:00:22.6]} 74... Kb3 {[%clk
0:00:08.1]} 75. Qd5+ {[%clk 0:00:18.4]} 75... Kc2 {[%clk 0:00:05.8]} 76. Qe4+
{[%clk 0:00:14.4]} 76... Kb3 {[%clk 0:00:04.9]} 77. Qe3+ {[%clk 0:00:14.2]}
77... Kc2 {[%clk 0:00:05.1]} 78. Qe4+ {[%clk 0:00:09.5]} 78... Kb3 {[%clk
0:00:05.7]} 79. Qd5+ {[%clk 0:00:10.2]} 79... Kc2 {[%clk 0:00:06.8]} 80. Qxh5
{[%clk 0:00:11.5]} 80... Qg2+ {[%clk 0:00:04.9]} 81. Kc7 {[%clk 0:00:11.9]}
81... Qg3+ {[%clk 0:00:04.9]} 82. Bd6 {[%clk 0:00:12.6]} 82... Qg7+ {[%clk
0:00:06]} 83. Kc6 {[%clk 0:00:13.4]} 83... Qg2+ {[%clk 0:00:05.4]} 84. Qd5
{[%clk 0:00:14.3]} 84... Qg7 {[%clk 0:00:05.9]} 85. Qc5+ {[%clk 0:00:14.6]}
85... Kd2 {[%clk 0:00:06.2]} 86. h5 {[%clk 0:00:15.8]} 86... Ke2 {[%clk
0:00:06.4]} 87. Qe5+ {[%clk 0:00:16.4]} 87... Qxe5 {[%clk 0:00:06.9]} 88. Bxe5
{[%clk 0:00:18.3]} 1-0

[Event "GrandPrix_29.05"]
[Site "Chess.com"]
[Date "2020.05.29"]
[Round "1"]
[White "gliglu"]
[Black "Dolphin_2010"]
[Result "1-0"]
[WhiteElo "2436"]
[BlackElo "1810"]
[TimeControl "600+2"]
[EndTime "9:27:49 PDT"]
[Termination "gliglu won on time"]

1. d4 {[%clk 0:10:01.9]} 1... c6 {[%clk 0:09:57.4]} 2. c4 {[%clk 0:10:00.2]}
2... d5 {[%clk 0:09:58.1]} 3. Nf3 {[%clk 0:09:57.4]} 3... Nf6 {[%clk 0:09:58]}
4. g3 {[%clk 0:09:53.9]} 4... Bf5 {[%clk 0:09:27.4]} 5. Nbd2 {[%clk 0:09:24]}
5... e6 {[%clk 0:09:24.5]} 6. Bg2 {[%clk 0:09:23.4]} 6... Nbd7 {[%clk
0:09:16.7]} 7. O-O {[%clk 0:09:22.1]} 7... Be7 {[%clk 0:09:02.3]} 8. b3 {[%clk
0:09:19]} 8... O-O {[%clk 0:09:00.2]} 9. Bb2 {[%clk 0:09:19.7]} 9... Ne4 {[%clk
0:08:09]} 10. e3 {[%clk 0:08:44.2]} 10... Qa5 {[%clk 0:07:52.8]} 11. Nxe4 {[%clk
0:08:31.5]} 11... Bxe4 {[%clk 0:07:48.8]} 12. Qe2 {[%clk 0:08:31.1]} 12... Ba3
{[%clk 0:07:33.6]} 13. Bxa3 {[%clk 0:07:59]} 13... Qxa3 {[%clk 0:07:35.5]} 14.
Nd2 {[%clk 0:07:59.5]} 14... Bxg2 {[%clk 0:07:30.8]} 15. Kxg2 {[%clk 0:08:00]}
15... f5 {[%clk 0:07:26.4]} 16. Nf3 {[%clk 0:07:54.5]} 16... a5 {[%clk 0:06:32]}
17. Rab1 {[%clk 0:07:31.7]} 17... Qe7 {[%clk 0:06:15.7]} 18. h4 {[%clk
0:07:24.9]} 18... Qf7 {[%clk 0:05:52.9]} 19. Ng5 {[%clk 0:07:02.9]} 19... Qg6
{[%clk 0:05:47.8]} 20. Nh3 {[%clk 0:07:01.9]} 20... h6 {[%clk 0:04:09.1]} 21.
Nf4 {[%clk 0:06:49.8]} 21... Qf7 {[%clk 0:04:06.2]} 22. h5 {[%clk 0:06:38.2]}
22... Rfc8 {[%clk 0:03:24.6]} 23. Rfc1 {[%clk 0:06:25.9]} 23... Nf6 {[%clk
0:02:47.5]} 24. Rc2 {[%clk 0:06:25.3]} 24... Ne4 {[%clk 0:02:06.7]} 25. Rbc1
{[%clk 0:06:22.4]} 25... Kh7 {[%clk 0:01:40.8]} 26. Qd3 {[%clk 0:05:56.3]} 26...
Nf6 {[%clk 0:01:10.6]} 27. cxd5 {[%clk 0:05:48]} 27... Nxd5 {[%clk 0:01:10]} 28.
Nxd5 {[%clk 0:04:44.1]} 28... exd5 {[%clk 0:01:11.9]} 29. Qe2 {[%clk 0:04:45.2]}
29... Qe6 {[%clk 0:01:03.2]} 30. Rc5 {[%clk 0:04:43]} 30... Qe4+ {[%clk
0:00:56.3]} 31. Qf3 {[%clk 0:04:29.1]} 31... Re8 {[%clk 0:00:47.6]} 32. Rh1
{[%clk 0:04:28.4]} 32... Re6 {[%clk 0:00:38]} 33. Rh4 {[%clk 0:04:25.9]} 33...
Qxf3+ {[%clk 0:00:32]} 34. Kxf3 {[%clk 0:04:26.7]} 34... Re4 {[%clk 0:00:33.6]}
35. Rf4 {[%clk 0:04:22.4]} 35... g6 {[%clk 0:00:15.3]} 36. hxg6+ {[%clk
0:04:17.9]} 36... Kxg6 {[%clk 0:00:17.2]} 37. Rc1 {[%clk 0:04:18.5]} 37... Kg5
{[%clk 0:00:13.5]} 38. Rh1 {[%clk 0:04:13]} 38... h5 {[%clk 0:00:12.9]} 39. Ke2
{[%clk 0:04:02.7]} 39... a4 {[%clk 0:00:11]} 40. b4 {[%clk 0:04:02.2]} 40... a3
{[%clk 0:00:11.3]} 41. Kd3 {[%clk 0:03:52]} 41... Rh8 {[%clk 0:00:06.6]} 42. f3
{[%clk 0:03:34.4]} 42... Rxf4 {[%clk 0:00:03.5]} 43. exf4+ {[%clk 0:03:35.2]}
43... Kf6 {[%clk 0:00:04.5]} 44. Kc3 {[%clk 0:03:26.6]} 44... Rg8 {[%clk
0:00:05.4]} 45. Rh3 {[%clk 0:03:23.6]} 45... Re8 {[%clk 0:00:06.6]} 46. Kd2
{[%clk 0:03:21.5]} 46... Rg8 {[%clk 0:00:07.4]} 47. Ke2 {[%clk 0:03:18.5]} 47...
Re8+ {[%clk 0:00:07.6]} 48. Kf2 {[%clk 0:03:19.4]} 48... Kg6 {[%clk 0:00:08.4]}
49. Rh1 {[%clk 0:03:18]} 49... Rh8 {[%clk 0:00:07]} 50. Re1 {[%clk 0:03:07.2]}
50... Kf6 {[%clk 0:00:07.8]} 51. Re3 {[%clk 0:03:06.4]} 51... h4 {[%clk
0:00:06.7]} 52. Rxa3 {[%clk 0:02:25.1]} 52... hxg3+ {[%clk 0:00:06.6]} 53. Kxg3
{[%clk 0:02:25.7]} 53... Rg8+ {[%clk 0:00:07.7]} 54. Kf2 {[%clk 0:02:25.6]}
54... Rh8 {[%clk 0:00:08.5]} 55. Ra7 {[%clk 0:02:19.1]} 55... Rh2+ {[%clk
0:00:08.8]} 56. Ke3 {[%clk 0:02:17.7]} 56... Ke6 {[%clk 0:00:08.9]} 57. a4
{[%clk 0:02:14]} 57... Rb2 {[%clk 0:00:09.3]} 58. Rxb7 {[%clk 0:02:13.7]} 58...
Rb3+ {[%clk 0:00:10.4]} 59. Kf2 {[%clk 0:02:09.8]} 59... Rb2+ {[%clk 0:00:10]}
60. Kg3 {[%clk 0:02:09.1]} 60... Rd2 {[%clk 0:00:11.1]} 61. a5 {[%clk
0:02:09.7]} 61... Rxd4 {[%clk 0:00:12.4]} 62. a6 {[%clk 0:02:09.4]} 62... Rd2
{[%clk 0:00:12.5]} 63. a7 {[%clk 0:02:01.3]} 63... Ra2 {[%clk 0:00:12.9]} 64.
Kh4 {[%clk 0:02:01.9]} 64... d4 {[%clk 0:00:13.8]} 65. Kg5 {[%clk 0:01:46.1]}
65... d3 {[%clk 0:00:11.5]} 66. Rc7 {[%clk 0:01:31.1]} 66... d2 {[%clk
0:00:08.8]} 67. Rxc6+ {[%clk 0:01:25]} 67... Kd7 {[%clk 0:00:09.5]} 68. Rc2
{[%clk 0:01:20.1]} 68... Rxc2 {[%clk 0:00:08.8]} 69. a8=Q {[%clk 0:01:19.4]}
69... d1=Q {[%clk 0:00:09.6]} 70. Qb7+ {[%clk 0:01:17]} 70... Rc7 {[%clk
0:00:06.5]} 71. Qb5+ {[%clk 0:01:17.7]} 71... Kc8 {[%clk 0:00:07.5]} 72. Qa6+
{[%clk 0:01:13.6]} 72... Rb7 {[%clk 0:00:03.7]} 73. Qa8+ {[%clk 0:01:10.1]}
73... Kc7 {[%clk 0:00:03.5]} 74. Qa5+ {[%clk 0:01:10]} 74... Rb6 {[%clk
0:00:04.1]} 75. Qa7+ {[%clk 0:01:05.8]} 75... Kc6 {[%clk 0:00:04.6]} 76. Qa8+
{[%clk 0:01:06.8]} 76... Kb5 {[%clk 0:00:05.3]} 77. Qa5+ {[%clk 0:01:07.2]}
77... Kc6 {[%clk 0:00:05.3]} 78. Qa8+ {[%clk 0:01:06.4]} 78... Rb7 {[%clk
0:00:03.4]} 79. Qa6+ {[%clk 0:00:42.2]} 79... Kc7 {[%clk 0:00:03.7]} 80. Qa5+
{[%clk 0:00:37.3]} 80... Kd7 {[%clk 0:00:03.8]} 81. Qxf5+ {[%clk 0:00:36.1]}
81... Kd8 {[%clk 0:00:04.5]} 82. Qf8+ {[%clk 0:00:25.4]} 82... Kd7 {[%clk
0:00:04.2]} 83. f5 {[%clk 0:00:17.5]} 83... Qd2+ {[%clk 0:00:03.9]} 84. f4
{[%clk 0:00:10.8]} 84... Qg2+ {[%clk 0:00:04.3]} 85. Kh6 {[%clk 0:00:10.6]}
85... Rb6+ {[%clk 0:00:04.4]} 86. f6 {[%clk 0:00:11.7]} 86... Qh3+ {[%clk
0:00:04.5]} 87. Kg7 {[%clk 0:00:11.3]} 87... Qg4+ {[%clk 0:00:05.3]} 88. Kf7
{[%clk 0:00:10.7]} 88... Qh5+ {[%clk 0:00:04.5]} 89. Kg7 {[%clk 0:00:11.5]}
89... Qg4+ {[%clk 0:00:05.5]} 90. Kf7 {[%clk 0:00:12.5]} 90... Qxf4 {[%clk
0:00:03.3]} 91. Qe7+ {[%clk 0:00:08.3]} 91... Kc8 {[%clk 0:00:04.8]} 92. Ke8
{[%clk 0:00:06.1]} 92... Rb7 {[%clk 0:00:04]} 93. Qe6+ {[%clk 0:00:06.1]} 1-0